fUST/lending_fUST_20240117
["ID","MTS","AMOUNT","RATE_DAILY","PERIOD"]
[311851827,1705471839194,-630.33,0.00022191,2]
[311851828,1705471839203,-2161.32,0.00022191,2]
[311851829,1705471839212,-500.0,0.00022191,2]
[311851830,1705471839222,-500.0,0.00022191,2]
[311851831,1705471839231,-3554.6,0.00022191,2]
[311851832,1705471839239,-500.0,0.00022191,2]
[311851833,1705471839249,-500.0,0.00022191,2]
[311851834,1705471839258,-38968.39,0.00022191,2]
[311851835,1705471839267,-500.0,0.00022191,2]
[311851836,1705471839276,-21151.47,0.00022191,2]
[311851837,1705471839285,-715.23,0.00022191,2]
[311851838,1705471839294,-500.0,0.00022191,2]
[311851839,1705471839303,-500.0,0.00022191,2]
[311851840,1705471839313,-618.57,0.00022191,2]
[311851841,1705471839322,-7616.15,0.00022191,2]
[311851842,1705471839332,-943.36,0.00022191,2]
[311851843,1705471839342,-634.98,0.00022191,2]
[311851844,1705471839352,-500.0,0.00022191,2]
[311851845,1705471839361,-500.0,0.00022191,2]
[311851846,1705471839370,-500.0,0.00022191,2]
[311851847,1705471839380,-500.0,0.00022191,2]
[311851848,1705471839390,-500.0,0.00022191,2]
[311851849,1705471839401,-500.0,0.00022191,2]
[311851850,1705471839410,-2742.56,0.00022191,2]
[311851851,1705471839420,-500.0,0.00022191,2]
[311851852,1705471839429,-500.0,0.00022191,2]
[311851853,1705471839439,-8822.36,0.00022191,2]
[311851854,1705471839448,-241.37531993,0.00022191,2]
[311851855,1705471839458,-500.0,0.00022191,2]
[311851856,1705471839467,-500.0,0.00022191,2]
[311851857,1705471839477,-500.0,0.00022191,2]
[311851858,1705471839486,-3294.01,0.00022191,2]
[311851859,1705471839495,-500.0,0.00022191,2]
[311851860,1705471839504,-1709.3,0.00022191,2]
[311851861,1705471839514,-500.0,0.00022191,2]
[311851862,1705471839524,-500.0,0.00022191,2]
[311851863,1705471839534,-1018.1,0.00022191,2]
[311851864,1705471839543,-500.0,0.00022191,2]
[311851865,1705471839552,-486.28301242,0.00022191,2]
[311851866,1705471839561,-500.0,0.00022191,2]
[311851867,1705471839571,-500.0,0.00022328,2]
[311851868,1705471839580,-630.33,0.00022328,2]
[311851869,1705471839589,-2161.32,0.00022328,2]
[311851870,1705471839598,-500.0,0.00022328,2]
[311851871,1705471839607,-500.0,0.00022328,2]
[311851872,1705471839617,-3554.6,0.00022328,2]
[311851873,1705471839627,-547.60006591,0.00022328,2]
[311851874,1705471839636,-500.0,0.00022328,2]
[311851875,1705471839647,-38968.39,0.00022328,2]
[311851876,1705471839656,-500.0,0.00022328,2]
[311851877,1705471839666,-21151.47,0.00022328,2]
[311851878,1705471839675,-715.23,0.00022328,2]
[311851879,1705471839685,-500.0,0.00022328,2]
[311851881,1705471839694,-500.0,0.00022328,2]
[311851883,1705471839704,-618.57,0.00022328,2]
[311851884,1705471839713,-7616.15,0.00022328,2]
[311851885,1705471839723,-943.36,0.00022328,2]
[311851886,1705471839732,-634.98,0.00022328,2]
[311851887,1705471839741,-500.0,0.00022328,2]
[311851888,1705471839750,-500.0,0.00022328,2]
[311851890,1705471839760,-500.0,0.00022328,2]
[311851892,1705471839769,-500.0,0.00022328,2]
[311851893,1705471839779,-500.0,0.00022328,2]
[311851894,1705471839788,-500.0,0.00022328,2]
[311851895,1705471839797,-2742.56,0.00022328,2]
[311851896,1705471839806,-282.50659396,0.00022328,2]
[311851897,1705471839816,-500.0,0.00022328,2]
[311851898,1705471839825,-8822.36,0.00022328,2]
[311851899,1705471839835,-500.0,0.00022328,2]
[311851900,1705471839844,-600.88725899,0.00022328,2]
[311851901,1705471839854,-500.0,0.00022328,2]
[311851902,1705471839864,-3294.01,0.00022328,2]
[311851903,1705471839873,-500.0,0.00022328,2]
[311851904,1705471839884,-1709.3,0.00022328,2]
[311851905,1705471839896,-500.0,0.00022328,2]
[311851906,1705471839910,-500.0,0.00022328,2]
[311851907,1705471839922,-1018.1,0.00022328,2]
[311851908,1705471839931,-500.0,0.00022328,2]
[311851909,1705471839940,-500.0,0.00022328,2]
[311851910,1705471839951,-500.0,0.00022465,2]
[311851911,1705471839960,-630.33,0.00022465,2]
[311851912,1705471839970,-2161.32,0.00022465,2]
[311851913,1705471839979,-500.0,0.00022465,2]
[311851914,1705471839988,-512.31621446,0.00022465,2]
[311851915,1705471839997,-3554.6,0.00022465,2]
[311851916,1705471840006,-500.0,0.00022465,2]
[311851917,1705471840015,-38968.39,0.00022465,2]
[311851918,1705471840024,-500.0,0.00022465,2]
[311851919,1705471840034,-21151.47,0.00022465,2]
[311851920,1705471840043,-715.23,0.00022465,2]
[311851921,1705471840053,-500.0,0.00022465,2]
[311851922,1705471840062,-500.0,0.00022465,2]
[311851923,1705471840071,-618.57,0.00022465,2]
[311851924,1705471840080,-7616.15,0.00022465,2]
[311851925,1705471840090,-943.36,0.00022465,2]
[311851926,1705471840099,-634.98,0.00022465,2]
[311851927,1705471840108,-500.0,0.00022465,2]
[311851928,1705471840117,-500.0,0.00022465,2]
[311851929,1705471840126,-500.0,0.00022465,2]
[311851930,1705471840136,-500.0,0.00022465,2]
[311851931,1705471840147,-500.0,0.00022465,2]
[311851932,1705471840156,-500.0,0.00022465,2]
[311851933,1705471840165,-2742.56,0.00022465,2]
[311851934,1705471840175,-500.0,0.00022465,2]
[311851935,1705471840184,-8822.36,0.00022465,2]
[311851936,1705471840194,-500.0,0.00022465,2]
[311851937,1705471840204,-500.0,0.00022465,2]
[311851938,1705471840213,-3294.01,0.00022465,2]
[311851939,1705471840222,-500.0,0.00022465,2]
[311851940,1705471840231,-1709.3,0.00022465,2]
[311851941,1705471840240,-500.0,0.00022465,2]
[311851942,1705471840250,-500.0,0.00022465,2]
[311851943,1705471840259,-1018.1,0.00022465,2]
[311851944,1705471840268,-500.0,0.00022465,2]
[311851945,1705471840277,-500.0,0.00022465,2]
[311851946,1705471840286,-500.0,0.00022602,2]
[311851947,1705471840296,-630.33,0.00022602,2]
[311851948,1705471840305,-2161.32,0.00022602,2]
[311851949,1705471840314,-500.0,0.00022602,2]
[311851950,1705471840394,-3554.6,0.00022602,2]
[311851951,1705471840404,-500.0,0.00022602,2]
[311851952,1705471840414,-38968.39,0.00022602,2]
[311851953,1705471840423,-500.0,0.00022602,2]
[311851954,1705471840432,-21151.47,0.00022602,2]
[311851955,1705471840442,-715.23,0.00022602,2]
[311851956,1705471840451,-500.0,0.00022602,2]
[311851957,1705471840460,-500.0,0.00022602,2]
[311851958,1705471840470,-618.57,0.00022602,2]
[311851959,1705471840480,-7616.15,0.00022602,2]
[311851961,1705471840489,-943.36,0.00022602,2]
[311851963,1705471840498,-634.98,0.00022602,2]
[311851964,1705471840508,-500.0,0.00022602,2]
[311851965,1705471840518,-352.86531684,0.00022602,2]
[311851966,1705471840528,-500.0,0.00022602,2]
[311851967,1705471840537,-500.0,0.00022602,2]
[311851968,1705471840547,-500.0,0.00022602,2]
[311851969,1705471840557,-500.0,0.00022602,2]
[311851970,1705471840566,-2742.56,0.00022602,2]
[311851971,1705471840576,-500.0,0.00022602,2]
[311851972,1705471840586,-8822.36,0.00022602,2]
[311851973,1705471840595,-500.0,0.00022602,2]
[311851974,1705471840605,-500.0,0.00022602,2]
[311851975,1705471840614,-3294.01,0.00022602,2]
[311851976,1705471840623,-500.0,0.00022602,2]
[311851977,1705471840633,-1709.3,0.00022602,2]
[311851978,1705471840644,-500.0,0.00022602,2]
[311851979,1705471840655,-500.0,0.00022602,2]
[311851980,1705471840664,-1018.1,0.00022602,2]
[311851981,1705471840673,-500.0,0.00022602,2]
[311851982,1705471840683,-500.0,0.00022602,2]
[311851983,1705471840692,-619.60676546,0.00022739,2]
[311851984,1705471840700,-630.33,0.00022739,2]
[311851985,1705471840709,-2161.32,0.00022739,2]
[311851986,1705471840719,-500.0,0.00022739,2]
[311851987,1705471840727,-3554.6,0.00022739,2]
[311851988,1705471840737,-500.0,0.00022739,2]
[311851989,1705471840746,-38968.39,0.00022739,2]
[311851990,1705471840755,-500.0,0.00022739,2]
[311851991,1705471840765,-21151.47,0.00022739,2]
[311851992,1705471840774,-715.23,0.00022739,2]
[311851993,1705471840783,-500.0,0.00022739,2]
[311851994,1705471840793,-500.0,0.00022739,2]
[311851995,1705471840802,-618.57,0.00022739,2]
[311851996,1705471840812,-7616.15,0.00022739,2]
[311851997,1705471840821,-943.36,0.00022739,2]
[311851998,1705471840831,-634.98,0.00022739,2]
[311851999,1705471840840,-500.0,0.00022739,2]
[311852000,1705471840849,-500.0,0.00022739,2]
[311852001,1705471840858,-500.0,0.00022739,2]
[311852002,1705471840868,-500.0,0.00022739,2]
[311852003,1705471840877,-500.0,0.00022739,2]
[311852004,1705471840887,-2742.56,0.00022739,2]
[311852005,1705471840897,-500.0,0.00022739,2]
[311852006,1705471840911,-8822.36,0.00022739,2]
[311852007,1705471840920,-500.0,0.00022739,2]
[311852008,1705471840930,-3294.01,0.00022739,2]
[311852009,1705471840939,-500.0,0.00022739,2]
[311852010,1705471840949,-1709.3,0.00022739,2]
[311852011,1705471840959,-500.0,0.00022739,2]
[311852012,1705471840968,-515.61152056,0.00022739,2]
[311852013,1705471840978,-1018.1,0.00022739,2]
[311852014,1705471840988,-500.0,0.00022739,2]
[311852015,1705471840997,-500.0,0.00022739,2]
[311852016,1705471841007,-280.0,0.00022793,7]
[311852017,1705471841016,-630.33,0.00022876,2]
[311852018,1705471841026,-2161.32,0.00022876,2]
[311852019,1705471841036,-500.0,0.00022876,2]
[311852020,1705471841045,-3554.6,0.00022876,2]
[311852021,1705471841055,-500.0,0.00022876,2]
[311852022,1705471841064,-38968.39,0.00022876,2]
[311852023,1705471841074,-344.85757155,0.00022876,2]
[311852024,1705471841083,-21151.47,0.00022876,2]
[311852025,1705471841093,-715.23,0.00022876,2]
[311852026,1705471841102,-500.0,0.00022876,2]
[311852027,1705471841111,-500.0,0.00022876,2]
[311852028,1705471841121,-618.57,0.00022876,2]
[311852029,1705471841130,-7616.15,0.00022876,2]
[311852030,1705471841139,-943.36,0.00022876,2]
[311852031,1705471841150,-500.0,0.00022876,2]
[311852032,1705471841160,-634.98,0.00022876,2]
[311852033,1705471841168,-383.91001896,0.00022876,2]
[311852034,1705471841178,-500.0,0.00022876,2]
[311852035,1705471841187,-500.0,0.00022876,2]
[311852036,1705471841197,-500.0,0.00022876,2]
[311852037,1705471841206,-2742.56,0.00022876,2]
[311852038,1705471841216,-500.0,0.00022876,2]
[311852039,1705471841225,-8822.36,0.00022876,2]
[311852040,1705471841234,-322.14233015,0.00022876,2]
[311852041,1705471841243,-3294.01,0.00022876,2]
[311852042,1705471841252,-500.0,0.00022876,2]
[311852043,1705471841262,-1709.3,0.00022876,2]
[311852044,1705471841271,-608.64434299,0.00022876,2]
[311852045,1705471841281,-1018.1,0.00022876,2]
[311852046,1705471841290,-500.0,0.00022876,2]
[311852047,1705471841299,-500.0,0.00022876,2]
[311852048,1705471841308,-630.33,0.00023013,2]
[311852049,1705471841318,-2161.32,0.00023013,2]
[311852050,1705471841328,-190.52563167,0.00023013,2]
[311852051,1705471841337,-3554.6,0.00023013,2]
[311852052,1705471841346,-500.0,0.00023013,2]
[311852053,1705471841356,-38968.39,0.00023013,2]
[311852054,1705471841365,-21151.47,0.00023013,2]
[311852055,1705471841374,-715.23,0.00023013,2]
[311852056,1705471841384,-500.0,0.00023013,2]
[311852057,1705471841393,-500.0,0.00023013,2]
[311852058,1705471841403,-618.57,0.00023013,2]
[311852059,1705471841412,-7616.15,0.00023013,2]
[311852060,1705471841421,-943.36,0.00023013,2]
[311852061,1705471841430,-500.0,0.00023013,2]
[311852062,1705471841439,-634.98,0.00023013,2]
[311852063,1705471841447,-500.0,0.00023013,2]
[311852064,1705471841456,-500.0,0.00023013,2]
[311852065,1705471841465,-500.0,0.00023013,2]
[311852066,1705471841474,-2742.56,0.00023013,2]
[311852067,1705471841482,-500.0,0.00023013,2]
[311852068,1705471841491,-8822.36,0.00023013,2]
[311852069,1705471841500,-3294.01,0.00023013,2]
[311852070,1705471841508,-500.0,0.00023013,2]
[311852071,1705471841517,-1709.3,0.00023013,2]
[311852072,1705471841526,-1018.1,0.00023013,2]
[311852073,1705471841535,-500.0,0.00023013,2]
[311852074,1705471841544,-500.0,0.00023013,2]
[311852075,1705471841553,-630.33,0.0002315,2]
[311852076,1705471841563,-2161.32,0.0002315,2]
[311852077,1705471841572,-3554.6,0.0002315,2]
[311852078,1705471841581,-500.0,0.0002315,2]
[311852079,1705471841657,-38968.39,0.0002315,2]
[311852080,1705471841666,-21151.47,0.0002315,2]
[311852081,1705471841675,-715.23,0.0002315,2]
[311852082,1705471841685,-500.0,0.0002315,2]
[311852083,1705471841694,-500.0,0.0002315,2]
[311852084,1705471841703,-618.57,0.0002315,2]
[311852085,1705471841712,-7616.15,0.0002315,2]
[311852086,1705471841722,-943.36,0.0002315,2]
[311852087,1705471841731,-634.98,0.0002315,2]
[311852088,1705471841740,-500.0,0.0002315,2]
[311852089,1705471841750,-500.0,0.0002315,2]
[311852090,1705471841759,-500.0,0.0002315,2]
[311852091,1705471841768,-2742.56,0.0002315,2]
[311852092,1705471841777,-500.0,0.0002315,2]
[311852093,1705471841786,-8822.36,0.0002315,2]
[311852094,1705471841796,-3294.01,0.0002315,2]
[311852095,1705471841805,-500.0,0.0002315,2]
[311852096,1705471841815,-1709.3,0.0002315,2]
[311852097,1705471841824,-1018.1,0.0002315,2]
[311852098,1705471841833,-500.0,0.0002315,2]
[311852099,1705471841843,-182.750999,0.000232,2]
[311852100,1705471841852,-630.33,0.00023287,2]
[311852101,1705471841861,-2161.32,0.00023287,2]
[311852102,1705471841871,-3554.6,0.00023287,2]
[311852103,1705471841880,-500.0,0.00023287,2]
[311852104,1705471841890,-38968.39,0.00023287,2]
[311852105,1705471841900,-21151.47,0.00023287,2]
[311852106,1705471841913,-715.23,0.00023287,2]
[311852107,1705471841923,-500.0,0.00023287,2]
[311852108,1705471841932,-500.0,0.00023287,2]
[311852109,1705471841942,-618.57,0.00023287,2]
[311852110,1705471841952,-7616.15,0.00023287,2]
[311852111,1705471841961,-943.36,0.00023287,2]
[311852112,1705471841971,-634.98,0.00023287,2]
[311852113,1705471841980,-405.32457491,0.00023287,2]
[311852114,1705471841990,-500.0,0.00023287,2]
[311852115,1705471842000,-500.0,0.00023287,2]
[311852116,1705471842010,-2742.56,0.00023287,2]
[311852117,1705471842019,-500.0,0.00023287,2]
[311852118,1705471842029,-8822.36,0.00023287,2]
[311852119,1705471842038,-3294.01,0.00023287,2]
[311852120,1705471842048,-500.0,0.00023287,2]
[311852121,1705471842058,-1709.3,0.00023287,2]
[311852122,1705471842067,-1018.1,0.00023287,2]
[311852123,1705471842076,-542.59799575,0.00023287,2]
[311852124,1705471842086,-262.284941,0.00023287,2]
[311852125,1705471842095,-262.284941,0.00023287,2]
[311852126,1705471842104,-480.77322311,0.00023288,4]
[311852127,1705471842113,-500.0,0.00023288,4]
[311852128,1705471842122,-455.34731137,0.00023288,4]
[311852129,1705471842131,-500.0,0.00023288,4]
[311852130,1705471842139,-500.0,0.00023288,4]
[311852131,1705471842148,-500.0,0.00023288,4]
[311852132,1705471842157,-500.0,0.00023288,4]
[311852133,1705471842166,-500.0,0.00023288,4]
[311852134,1705471842175,-500.0,0.00023288,4]
[311852135,1705471842184,-500.0,0.00023288,4]
[311852136,1705471842193,-561.04556538,0.00023288,4]
[311852137,1705471842203,-500.0,0.00023288,4]
[311852138,1705471842212,-231.7989992,0.00023288,4]
[311852139,1705471842222,-500.0,0.00023288,4]
[311852140,1705471842231,-500.0,0.00023288,4]
[311852141,1705471842240,-500.0,0.00023288,4]
[311852142,1705471842249,-500.0,0.00023288,4]
[311852143,1705471842258,-500.0,0.00023288,4]
[311852144,1705471842267,-500.0,0.00023288,4]
[311852145,1705471842276,-500.0,0.00023288,4]
[311852146,1705471842285,-500.0,0.00023288,4]
[311852147,1705471842294,-500.0,0.00023288,4]
[311852148,1705471842303,-500.0,0.00023288,4]
[311852149,1705471842311,-500.0,0.00023288,4]
[311852150,1705471842320,-500.0,0.00023288,4]
[311852151,1705471842328,-500.0,0.00023288,4]
[311852152,1705471842337,-580.32160343,0.00023288,4]
[311852153,1705471842345,-500.0,0.00023288,4]
[311852154,1705471842354,-500.0,0.00023288,4]
[311852155,1705471842363,-500.0,0.00023288,4]
[311852156,1705471842372,-500.0,0.00023288,4]
[311852157,1705471842381,-500.0,0.00023288,4]
[311852158,1705471842389,-500.0,0.00023288,4]
[311852159,1705471842398,-500.0,0.00023288,4]
[311852160,1705471842408,-500.0,0.00023288,4]
[311852161,1705471842417,-500.0,0.00023288,4]
[311852162,1705471842426,-500.0,0.00023288,4]
[311852163,1705471842435,-500.0,0.00023288,4]
[311852164,1705471842444,-500.0,0.00023288,4]
[311852166,1705471842454,-500.0,0.00023288,2]
[311852167,1705471842463,-500.0,0.00023288,2]
[311852168,1705471842473,-500.0,0.00023288,2]
[311852169,1705471842482,-500.0,0.00023288,4]
[311852170,1705471842491,-500.0,0.00023288,2]
[311852171,1705471842501,-325.76802836,0.00023288,2]
[311852172,1705471842510,-500.0,0.00023288,2]
[311852173,1705471842519,-250.0,0.00023288,2]
[311852174,1705471842529,-205.08781694,0.00023288,2]
[311852175,1705471842538,-500.0,0.00023288,2]
[311852176,1705471842547,-500.0,0.00023288,4]
[311852177,1705471842557,-500.0,0.00023288,2]
[311852179,1705471842566,-500.0,0.00023288,2]
[311852181,1705471842575,-500.0,0.00023288,2]
[311852182,1705471842584,-555.04774066,0.00023288,2]
[311852184,1705471842593,-500.0,0.00023288,4]
[311852186,1705471842602,-500.0,0.00023288,2]
[311852188,1705471842611,-500.0,0.00023288,4]
[311852190,1705471842619,-500.0,0.00023288,2]
[311852192,1705471842628,-500.0,0.00023288,4]
[311852193,1705471842637,-630.33,0.00023424,2]
[311852194,1705471842646,-2161.32,0.00023424,2]
[311852196,1705471842655,-3554.6,0.00023424,2]
[311852198,1705471842665,-500.0,0.00023424,2]
[311852200,1705471842674,-38968.39,0.00023424,2]
[311852202,1705471842682,-21151.47,0.00023424,2]
[311852204,1705471842691,-715.23,0.00023424,2]
[311852206,1705471842700,-500.0,0.00023424,2]
[311852208,1705471842709,-500.0,0.00023424,2]
[311852210,1705471842718,-618.57,0.00023424,2]
[311852218,1705471842788,-7616.15,0.00023424,2]
[311852220,1705471842797,-943.36,0.00023424,2]
[311852222,1705471842805,-634.98,0.00023424,2]
[311852224,1705471842814,-500.0,0.00023424,2]
[311852226,1705471842823,-500.0,0.00023424,2]
[311852228,1705471842832,-2742.56,0.00023424,2]
[311852230,1705471842841,-500.0,0.00023424,2]
[311852232,1705471842850,-8822.36,0.00023424,2]
[311852234,1705471842859,-3294.01,0.00023424,2]
[311852236,1705471842868,-500.0,0.00023424,2]
[311852238,1705471842878,-1709.3,0.00023424,2]
[311852241,1705471842888,-1018.1,0.00023424,2]
[311852243,1705471842900,-630.33,0.00023561,2]
[311852245,1705471842910,-2161.32,0.00023561,2]
[311852247,1705471842919,-3554.6,0.00023561,2]
[311852249,1705471842928,-500.0,0.00023561,2]
[311852250,1705471842938,-38968.39,0.00023561,2]
[311852253,1705471842948,-21151.47,0.00023561,2]
[311852255,1705471842958,-715.23,0.00023561,2]
[311852257,1705471842967,-500.0,0.00023561,2]
[311852258,1705471842977,-500.0,0.00023561,2]
[311852260,1705471842987,-618.57,0.00023561,2]
[311852262,1705471842997,-7616.15,0.00023561,2]
[311852265,1705471843007,-943.36,0.00023561,2]
[311852267,1705471843016,-634.98,0.00023561,2]
[311852269,1705471843026,-500.0,0.00023561,2]
[311852271,1705471843035,-500.0,0.00023561,2]
[311852273,1705471843044,-2742.56,0.00023561,2]
[311852275,1705471843053,-500.0,0.00023561,2]
[311852277,1705471843062,-8822.36,0.00023561,2]
[311852279,1705471843071,-3294.01,0.00023561,2]
[311852281,1705471843080,-500.0,0.00023561,2]
[311852283,1705471843089,-1709.3,0.00023561,2]
[311852285,1705471843098,-1018.1,0.00023561,2]
[311852287,1705471843108,-630.33,0.00023698,2]
[311852289,1705471843116,-2161.32,0.00023698,2]
[311852291,1705471843125,-3554.6,0.00023698,2]
[311852293,1705471843134,-500.0,0.00023698,2]
[311852295,1705471843142,-38968.39,0.00023698,2]
[311852297,1705471843153,-21151.47,0.00023698,2]
[311852299,1705471843163,-715.23,0.00023698,2]
[311852301,1705471843171,-500.0,0.00023698,2]
[311852303,1705471843181,-331.70357331,0.00023698,2]
[311852305,1705471843189,-618.57,0.00023698,2]
[311852307,1705471843198,-7616.15,0.00023698,2]
[311852309,1705471843208,-943.36,0.00023698,2]
[311852311,1705471843217,-634.98,0.00023698,2]
[311852313,1705471843226,-500.0,0.00023698,2]
[311852315,1705471843235,-500.0,0.00023698,2]
[311852317,1705471843245,-2742.56,0.00023698,2]
[311852319,1705471843254,-500.0,0.00023698,2]
[311852321,1705471843263,-8822.36,0.00023698,2]
[311852323,1705471843273,-3294.01,0.00023698,2]
[311852325,1705471843282,-500.0,0.00023698,2]
[311852327,1705471843291,-1709.3,0.00023698,2]
[311852329,1705471843300,-1018.1,0.00023698,2]
[311852331,1705471843310,-630.33,0.00023835,2]
[311852333,1705471843319,-2161.32,0.00023835,2]
[311852335,1705471843328,-3554.6,0.00023835,2]
[311852337,1705471843337,-500.0,0.00023835,2]
[311852339,1705471843346,-38968.39,0.00023835,2]
[311852341,1705471843355,-21151.47,0.00023835,2]
[311852343,1705471843364,-715.23,0.00023835,2]
[311852345,1705471843374,-500.0,0.00023835,2]
[311852347,1705471843383,-618.57,0.00023835,2]
[311852348,1705471843392,-943.36,0.00023835,2]
[311852351,1705471843402,-7616.15,0.00023835,2]
[311852352,1705471843412,-634.98,0.00023835,2]
[311852354,1705471843421,-500.0,0.00023835,2]
[311852356,1705471843431,-500.0,0.00023835,2]
[311852358,1705471843440,-2742.56,0.00023835,2]
[311852360,1705471843449,-500.0,0.00023835,2]
[311852363,1705471843459,-8822.36,0.00023835,2]
[311852365,1705471843468,-3294.01,0.00023835,2]
[311852367,1705471843478,-500.0,0.00023835,2]
[311852368,1705471843487,-1709.3,0.00023835,2]
[311852370,1705471843496,-1018.1,0.00023835,2]
[311852372,1705471843504,-630.33,0.00023972,2]
[311852374,1705471843513,-2161.32,0.00023972,2]
[311852376,1705471843522,-3554.6,0.00023972,2]
[311852378,1705471843531,-500.0,0.00023972,2]
[311852380,1705471843540,-38968.39,0.00023972,2]
[311852382,1705471843549,-21151.47,0.00023972,2]
[311852384,1705471843558,-715.23,0.00023972,2]
[311852386,1705471843568,-500.0,0.00023972,2]
[311852388,1705471843577,-618.57,0.00023972,2]
[311852390,1705471843586,-943.36,0.00023972,2]
[311852392,1705471843595,-7616.15,0.00023972,2]
[311852394,1705471843604,-634.98,0.00023972,2]
[311852396,1705471843613,-500.0,0.00023972,2]
[311852398,1705471843622,-500.0,0.00023972,2]
[311852400,1705471843630,-2742.56,0.00023972,2]
[311852402,1705471843640,-500.0,0.00023972,2]
[311852404,1705471843649,-8822.36,0.00023972,2]
[311852406,1705471843658,-3294.01,0.00023972,2]
[311852408,1705471843667,-387.9049843,0.00023972,2]
[311852410,1705471843676,-1709.3,0.00023972,2]
[311852412,1705471843686,-1018.1,0.00023972,2]
[311852414,1705471843696,-4009.98583591,0.00024,2]
[311852416,1705471843705,-262.284941,0.00024,2]
[311852419,1705471843715,-262.284941,0.00024,2]
[311852421,1705471843725,-630.33,0.00024109,2]
[311852422,1705471843734,-2161.32,0.00024109,2]
[311852424,1705471843743,-3554.6,0.00024109,2]
[311852426,1705471843752,-172.22123822,0.00024109,2]
[311852428,1705471843761,-38968.39,0.00024109,2]
[311852430,1705471843770,-21151.47,0.00024109,2]
[311852440,1705471843843,-715.23,0.00024109,2]
[311852443,1705471843860,-500.0,0.00024109,2]
[311852445,1705471843869,-618.57,0.00024109,2]
[311852446,1705471843878,-943.36,0.00024109,2]
[311852449,1705471843888,-7616.15,0.00024109,2]
[311852451,1705471843898,-634.98,0.00024109,2]
[311852453,1705471843910,-500.0,0.00024109,2]
[311852455,1705471843919,-342.87161313,0.00024109,2]
[311852457,1705471843928,-2742.56,0.00024109,2]
[311852459,1705471843938,-562.42328783,0.00024109,2]
[311852461,1705471843947,-8822.36,0.00024109,2]
[311852463,1705471843957,-3294.01,0.00024109,2]
[311852465,1705471843966,-1709.3,0.00024109,2]
[311852467,1705471843976,-1018.1,0.00024109,2]
[311852469,1705471843987,-630.33,0.00024246,2]
[311852471,1705471843997,-2161.32,0.00024246,2]
[311852473,1705471844006,-3554.6,0.00024246,2]
[311852475,1705471844016,-38968.39,0.00024246,2]
[311852477,1705471844026,-21151.47,0.00024246,2]
[311852479,1705471844035,-715.23,0.00024246,2]
[311852481,1705471844045,-500.0,0.00024246,2]
[311852483,1705471844054,-618.57,0.00024246,2]
[311852485,1705471844064,-943.36,0.00024246,2]
[311852487,1705471844073,-7616.15,0.00024246,2]
[311852488,1705471844082,-634.98,0.00024246,2]
[311852489,1705471844091,-500.0,0.00024246,2]
[311852490,1705471844100,-2742.56,0.00024246,2]
[311852491,1705471844108,-8822.36,0.00024246,2]
[311852492,1705471844117,-3294.01,0.00024246,2]
[311852493,1705471844127,-1709.3,0.00024246,2]
[311852494,1705471844135,-1018.1,0.00024246,2]